[Event "44th Chess Olympiad Women 2022"]
[Site "Chennai"]
[Date "2022.08.01"]
[Round "4.6"]
[White "Efroimski, Marsel"]
[Black "Mammadzada, Gunay"]
[Result "1/2-1/2"]
[WhiteElo "2456"]
[BlackElo "2455"]
[Annotator "TA"]
[PlyCount "88"]
[EventDate "2022.??.??"]
[TimeControl "60"]

{[%evp 14,88,8,4,16,6,15,16,14,0,0,0,0,0,0,0,0,0,-18,0,31,36,51,39,17,20,30,17,
39,45,57,63,111,90,83,105,97,93,104,104,82,62,45,56,43,14,14,0,0,0,0,0,0,-8,16,
10,36,53,56,-26,-36,-27,0,-7,-7,-9,0,-7,-7,-7,-7,-14,0,0,0,0,0]} 1. e4 {
[%emt 0:00:01]} c5 {[%emt 0:00:06]} 2. Nf3 {[%emt 0:00:03]} d6 {[%emt 0:00:04]}
3. Bb5+ {[%emt 0:00:03]} Bd7 {[%emt 0:00:10]} 4. Bxd7+ {[%emt 0:00:05]} Nxd7 {
[%emt 0:00:11]} 5. O-O {[%emt 0:00:07]} Ngf6 {[%emt 0:00:45]} 6. Qe2 {[%emt 0:
00:00]} e6 {[%emt 0:00:13]} 7. d4 {[%emt 0:01:14] 7.c3 is a critical line.}
cxd4 {[%emt 0:00:17]} 8. Nxd4 {[%emt 0:00:02]} Rc8 {[%emt 0:01:47] B52:
Sicilian: Moscow Variation with 3...Bd7.} 9. c4 {[%emt 0:00:33]} Qa5 {[%emt 0:
00:00]} 10. b3 {[%emt 0:00:18]} Qe5 {[%emt 0:07:35][%csl Yd4,Ye4] [#]} 11. Bb2
$146 {[%emt 0:00:06]} ({Predecessor:} 11. Be3 Qxe4 12. Nc3 Qg4 13. Qd2 Be7 14.
Ndb5 O-O 15. Nxa7 Ra8 16. Nab5 Rfd8 17. Rad1 {1-0 (36) Haria,R (2440)
-Roberson,P (2437) Newcastle on Tyne 2021}) 11... Qxe4 {[%emt 0:00:38]} (11...
Nxe4 $2 12. f4 Ng3 13. Qf3 (13. fxe5 Nxe2+ 14. Nxe2 dxe5 $18) 13... Ne2+ 14.
Qxe2 $18) 12. Qd2 {[%emt 0:03:55]} a6 {[%emt 0:09:16] Prevents Nb5.} 13. Nc3 {
[%emt 0:00:09][%cal Yb1c3,Yc3e2,Ye2g3]} Qg4 {[%emt 0:23:17]} 14. h3 {[%emt 0:
16:37]} Qh5 {[%emt 0:01:06]} 15. Nce2 {[%emt 0:06:01]} Be7 {[%emt 0:00:00]} 16.
Rfe1 {[%emt 0:10:26]} O-O {[%emt 0:04:04]} 17. Ng3 $1 {[%emt 0:00:20]} Qg6 {
[%emt 0:09:36] [#]} 18. Ndf5 $1 $36 {[%emt 0:02:07] White has good play.} exf5
{[%emt 0:00:26]} 19. Rxe7 {[%emt 0:00:06]} Nc5 {[%emt 0:00:46][%cal Yd6d5]} 20.
Rd1 {[%emt 0:17:07] Black should prevent Qf4.} Nfe4 {[%emt 0:00:00]} 21. Qf4 {
[%emt 0:01:53]} Nxg3 {[%emt 0:09:56]} 22. Rxd6 {[%emt 0:03:04]} (22. Qxg3 Qxg3
23. fxg3 Rfd8 $11) 22... Rcd8 {[%emt 0:02:29]} 23. Rxd8 $16 {[%emt 0:03:16]
Really sharp! White is more active.} ({Much weaker is} 23. Rxg6 $6 Rd1+ 24. Kh2
Nf1+ 25. Kh1 Ng3+ 26. Kh2 Nf1+ 27. Kh1 Ng3+ 28. Kh2 $11) 23... Rxd8 {[%emt 0:
00:11] [#]} 24. Qd4 {[%emt 0:00:55][%cal Rd4d8] Inhibits Rd1+.} Rf8 {[%emt 0:
02:03] ...Nge4 is the strong threat.} 25. Qxc5 {[%emt 0:00:13]} f4 {[%emt 0:07:
46] ( -> ...Qb1+)} 26. Re1 {[%emt 0:12:52][%cal Yc5f8] Against Qb1. Qxf8+!
would kill now.} Ne4 {[%emt 0:02:48]} 27. Qe5 {[%emt 0:05:43]} Ng5 {[%emt 0:01:
33] And now ...Nf3+ would win.} 28. Kh2 {[%emt 0:01:54] aiming for Ba3.} Ne6 {
[%emt 0:00:30]} 29. Bc1 {[%emt 0:08:39]} Qc2 {[%emt 0:01:11][%csl Ya2,Yf2]} 30.
Qe2 {[%emt 0:01:31]} (30. Ba3 {looks sharper.} Re8 31. Re2 Qd3 32. Bb4) 30...
Qxe2 {[%emt 0:01:06]} 31. Rxe2 $11 {[%emt 0:00:06] Endgame KRB-KRN} Rd8 {
[%emt 0:03:05]} 32. h4 {[%emt 0:01:29]} h5 {[%emt 0:00:00]} 33. Re4 {[%emt 0:
02:41]} f3 {[%emt 0:00:23]} 34. gxf3 {[%emt 0:00:20]} Rd1 {[%emt 0:00:13]} 35.
Be3 {[%emt 0:00:45]} Ra1 {[%emt 0:00:22]} 36. b4 {[%emt 0:00:00]} (36. f4 $1
$14 g6 37. c5) 36... Rxa2 {[%emt 0:00:04]} 37. b5 {[%emt 0:00:00]} Rb2 {
[%emt 0:00:39]} 38. bxa6 {[%emt 0:02:03] The position is equal.} bxa6 {[%emt 0:
00:01]} 39. c5 {[%emt 0:00:16]} Rc2 {[%emt 0:00:04]} 40. Ra4 {[%emt 0:00:18]}
Nxc5 {[%emt 0:00:11]} 41. Bxc5 {[%emt 0:30:04]} Rxc5 {[%emt 0:00:00]} 42. Rxa6
{[%emt 0:00:03]} f6 {[%emt 0:00:00]} 43. Kg3 {[%emt 0:00:00]} Kh7 {[%emt 0:00:
00]} 44. Rb6 {[%emt 0:00:00]} Kg6 {[%emt 0:00:00] Weighted Error Value:
White=0.06 (flawless) /Black=0.06 (flawless)} 1/2-1/2

[Event "44th Chess Olympiad Women 2022"]
[Site "Chennai"]
[Date "2022.08.01"]
[Round "4.6"]
[White "Fataliyeva, Ulviyya"]
[Black "Lahav, Michal"]
[Result "1-0"]
[WhiteElo "2372"]
[BlackElo "2191"]
[Annotator "TA"]
[PlyCount "141"]
[EventDate "2022.??.??"]
[TimeControl "60"]

{[%evp 21,141,13,24,3,9,8,11,4,4,0,24,20,41,26,27,33,47,33,33,29,33,33,67,13,
29,18,22,14,15,8,8,8,9,0,9,0,11,11,8,0,8,-10,0,0,0,-45,0,-42,0,0,0,0,0,0,0,-6,
0,0,131,123,165,162,157,8,311,47,110,37,89,0,0,0,0,0,86,56,60,58,58,61,61,58,
56,0,0,0,0,0,0,0,0,0,219,215,213,207,189,170,1235,1209,1128,1095,1093,1054,
29967,29969,29969,29971,29973,29972,29969,29963,29970,29971,29975,29976,29975,
29975,29972,29975,29973,29965]} 1. d4 {[%emt 0:00:02]} Nf6 {[%emt 0:00:07]} 2.
c4 {[%emt 0:00:05]} c5 {[%emt 0:00:14]} 3. d5 {[%emt 0:00:06]} e6 {[%emt 0:00:
00]} 4. g3 {[%emt 0:00:58]} exd5 {[%emt 0:00:16]} 5. cxd5 {[%emt 0:00:04]} d6 {
[%emt 0:00:08]} 6. Bg2 {[%emt 0:00:08]} g6 {[%emt 0:00:04]} 7. Nc3 {[%emt 0:00:
00]} Bg7 {[%emt 0:00:03]} 8. Nf3 {[%emt 0:00:05][%cal Yg1f3,Yf3d2,Yd2c4]} O-O {
[%emt 0:00:20]} 9. O-O {[%emt 0:00:04]} Re8 {[%emt 0:00:59]} 10. Bf4 {[%emt 0:
00:05]} Ne4 {[%emt 0:11:50]} 11. Nxe4 {[%emt 0:00:15]} Rxe4 {[%emt 0:00:00]}
12. Nd2 {[%emt 0:00:41] A62: Modern Benoni: Fianchetto Variation without early
...Nbd7.} Rxf4 {[%emt 0:08:04]} 13. gxf4 {[%emt 0:00:19]} Bxb2 {[%emt 0:00:05]}
14. Rb1 {[%emt 0:01:34] The position is equal.} Bg7 {[%emt 0:00:00]} 15. Nc4 {
[%emt 0:00:07]} b6 {[%emt 0:03:12] is more profitable than 15. ..Na6 at the
moment.} 16. Qa4 {[%emt 0:03:55][%cal Yc4b6]} Ba6 {[%emt 0:09:14] [#]} 17. Rfd1
$146 {[%emt 0:02:17]} ({Predecessor:} 17. Ne5 Bb7 18. Nc6 Qc7 19. Rb3 Nd7 20.
f5 Bf6 21. fxg6 hxg6 22. h4 Kg7 23. h5 a6 24. hxg6 fxg6 25. Rg3 Rh8 26. Qc2 Nf8
27. Be4 {½-½ (27) Erdos,V (2610)-Dragun,K (2586) Biel 2015}) 17... Bxc4 {
[%emt 0:15:50]} 18. Qxc4 {[%emt 0:00:15]} Nd7 {[%emt 0:00:03]} 19. Qa6 {
[%emt 0:14:19]} Nf6 {[%emt 0:06:45]} 20. a4 {[%emt 0:00:00][%cal Ya4a5]} Ne8 {
[%emt 0:04:15]} 21. Rb3 {[%emt 0:13:17]} f5 {[%emt 0:15:08]} 22. Qc4 {[%emt 0:
10:38] White is more active.} (22. Qb7 $14) 22... Nc7 $11 {[%emt 0:00:00]} 23.
e3 {[%emt 0:11:23]} Rb8 {[%emt 0:01:05]} 24. Rdb1 {[%emt 0:00:12]} Kh8 {
[%emt 0:02:30]} 25. Bf3 {[%emt 0:03:49]} Bf6 {[%emt 0:02:48]} 26. Qf1 {[%emt 0:
01:40]} Qe8 {[%emt 0:02:47]} 27. Qc4 {[%emt 0:06:52]} Kg7 {[%emt 0:00:00]} 28.
e4 {[%emt 0:01:00]} fxe4 {[%emt 0:02:14]} 29. Bxe4 {[%emt 0:00:29]} Bd4 {
[%emt 0:02:01]} 30. Re1 {[%emt 0:05:48]} Qf7 {[%emt 0:05:25]} 31. Rd3 {[%emt 0:
00:51]} Re8 {[%emt 0:00:52][%cal Yc7d5]} (31... Qxf4 $2 32. Rxd4 Rf8 33. Rdd1
$18) 32. Kf1 {[%emt 0:02:10]} (32. Rxd4 cxd4 33. Qxd4+ Qf6 34. Qxf6+ Kxf6 $15)
32... Re7 {[%emt 0:02:24]} ({Don't play} 32... Qxf4 33. Rxd4 cxd4 34. Qxc7+ Kg8
35. Bg2 (35. Qxa7 Rxe4 36. Rxe4 Qxe4 $11) 35... Rxe1+ 36. Kxe1 $16) 33. Rf3 {
[%emt 0:00:36]} Ne8 {[%emt 0:03:39]} (33... Qe8 $5 {[%cal Re7e4]} 34. Qd3 Nxd5
$1 $15) 34. f5 {[%emt 0:03:09] fxg6 is the strong threat.} Nf6 {[%emt 0:00:31]}
(34... g5 $5 {[%cal Re8f6]} 35. Rg3 h6 $11) 35. fxg6 {[%emt 0:00:00]} hxg6 {
[%emt 0:00:41]} 36. Bc2 {[%emt 0:04:39] Strongly threatening Re6.} Rxe1+ {
[%emt 0:00:27]} 37. Kxe1 {[%emt 0:00:01]} Qxd5 {[%emt 0:00:31]} 38. Qd3 {
[%emt 0:00:38]} Qh5 {[%emt 0:00:10]} 39. Rh3 {[%emt 0:07:25]} Qg5 {[%emt 0:00:
40]} (39... c4 $1 $11 40. Qg3 Qe5+ 41. Kd1 g5) 40. Rg3 $1 $16 {[%emt 0:06:17]
White has strong compensation.} Ng4 {[%emt 0:00:04]} 41. f4 {[%emt 0:13:00]}
Qh5 {[%emt 0:09:29] aiming for ...Bf2+.} 42. Rg2 {[%emt 0:00:56] Against Bf2+}
(42. Rh3 $16 Bf2+ 43. Kd2 Be3+ 44. Rxe3 Nxe3 45. Qxe3 (45. Kxe3 Qh3+ 46. Kd2
Qxh2+ 47. Kc3 Qxf4 $14) 45... Qxh2+ 46. Kc3) 42... a6 $2 {[%emt 0:22:01] [#]} (
42... Bf2+ $11 43. Kf1 (43. Rxf2 Nxf2 44. Kxf2 Qxh2+ 45. Ke1 Qg2 $11) 43... Bd4
) 43. h3 $2 {[%emt 0:13:05]} (43. Qxa6 $2 Bc3+ 44. Kf1 Ne3+ 45. Kg1 Nxc2 $19) (
{Only move:} 43. Bd1 $1 $18) 43... Nf6 {[%emt 0:00:07]} (43... Ne3 $14 44.
Qxg6+ Qxg6 45. Rxg6+ Kf7) 44. Rxg6+ {[%emt 0:01:26]} (44. Qxg6+ $16 Qxg6 45.
Bxg6 (45. Rxg6+ Kf7 $16)) 44... Kf7 {[%emt 0:01:00] [#]} (44... Kf8 $14) 45.
Qg3 {[%emt 0:01:06]} (45. Rg3 $1 $16) 45... Qd5 $1 $11 {[%emt 0:00:31]} 46.
Rg7+ {[%emt 0:01:59]} Kf8 $1 {[%emt 0:00:00] White must now prevent ...Nh5.}
47. Ra7 {[%emt 0:03:03] Intending Qg7+ and mate.} Nh5 {[%emt 0:00:22] Inhibits
Qg7+.} (47... Qh1+ $1 $11 {remains equal.} 48. Kd2 (48. Ke2 Ne4 $11) 48... Ne4+
49. Bxe4 Qxe4) 48. Qg4 {[%emt 0:02:10][%cal Rg4c8]} Bc3+ $1 {[%emt 0:00:02]} ({
Not} 48... Qh1+ 49. Kd2 Qh2+ 50. Kc1 (50. Kd1 Qh1+ 51. Kd2 Qh2+ 52. Kc1 Qxf4+
53. Qxf4+ Nxf4 $16) 50... Qxf4+ 51. Qxf4+ Nxf4 52. Rxa6 $16) 49. Kf1 {[%emt 0:
00:37][%cal Rg4c8]} Qh1+ {[%emt 0:00:00]} 50. Kf2 {[%emt 0:00:26][%cal Rg4c8]}
Qe1+ {[%emt 0:00:33]} 51. Kg2 {[%emt 0:00:34]} Qd2+ {[%emt 0:00:11]} 52. Kf3 {
[%emt 0:00:30]} ({White should play} 52. Kh1 $14 Qe1+ 53. Qg1 (53. Kg2 Qd2+ 54.
Kh1 Qd5+ 55. Kg1 Qd4+ 56. Kh1 Qd5+ 57. Qg2 Nxf4 $14)) 52... Qd5+ {[%emt 0:00:
45]} 53. Be4 {[%emt 0:00:29][%cal Rg4c8]} Qd1+ {[%emt 0:00:00]} 54. Kg2 {
[%emt 0:00:21][%cal Rg4c8] The board is on fire.} Qd2+ {[%emt 0:01:05]} 55. Kh1
{[%emt 0:00:32][%cal Rg4c8]} Qe1+ {[%emt 0:00:21]} 56. Kh2 {[%emt 0:00:01]
[%cal Rg4c8]} Qf2+ $2 {[%emt 0:00:00] Black is on the road to losing.} (56...
Qxe4 $11 {and Black stays safe.} 57. Qxh5 Qxf4+ 58. Kg2 Qd2+ 59. Kh1 Qc1+ 60.
Kg2 Qd2+ 61. Kh1 Qc1+ 62. Kg2 Qd2+) 57. Bg2 $18 {[%emt 0:00:17][%cal Rg4c8]}
Qxf4+ {[%emt 0:00:02]} 58. Qxf4+ {[%emt 0:00:05]} Nxf4 {[%emt 0:00:03]} 59.
Rxa6 {[%emt 0:00:29]} Nxg2 $2 {[%emt 0:00:17]} (59... Ba5 60. Kg3 Nxg2) 60.
Kxg2 {[%emt 0:00:03] Endgame KR-KB} Ba5 {[%emt 0:00:52]} 61. Ra7 {[%emt 0:00:
17]} d5 {[%emt 0:01:35]} 62. Kf3 {[%emt 0:00:35]} c4 {[%emt 0:00:31]} 63. Rd7 {
[%emt 0:01:07] White mates.} c3 {[%emt 0:00:43]} 64. Rxd5 {[%emt 0:00:21]} Ke7
{[%emt 0:00:08]} 65. Rd4 {[%emt 0:00:38]} Ke6 {[%emt 0:00:20]} 66. Ke4 {
[%emt 0:00:11]} Kf6 {[%emt 0:00:59]} 67. Kd3 {[%emt 0:00:29]} Kg5 {[%emt 0:00:
23]} 68. h4+ {[%emt 0:00:00]} Kh5 {[%emt 0:00:06]} 69. Re4 {[%emt 0:00:06]} Kg6
{[%emt 0:00:17]} 70. Re5 {[%emt 0:00:05]} Bb4 {[%emt 0:00:26]} 71. Re6+ {
[%emt 0:00:35] Weighted Error Value: White=0.24 (precise) /Black=0.28 (precise)
} 1-0

[Event "44th Chess Olympiad Women 2022"]
[Site "Chennai"]
[Date "2022.08.01"]
[Round "4.6"]
[White "Klinova, Masha"]
[Black "Beydullayeva, Govhar"]
[Result "1/2-1/2"]
[WhiteElo "2251"]
[BlackElo "2390"]
[Annotator "TA"]
[PlyCount "67"]
[EventDate "2022.??.??"]
[TimeControl "60"]

{[%evp 17,67,9,25,31,13,14,10,0,0,0,4,-4,13,7,14,3,33,30,27,7,10,8,13,0,0,8,75,
62,83,74,77,70,70,0,0,0,0,0,9,0,0,0,0,0,18,12,8,0,42,45,63,0]} 1. e4 {[%emt 0:
00:00]} c5 {[%emt 0:00:25]} 2. Nf3 {[%emt 0:00:05]} d6 {[%emt 0:00:03]} 3. Bb5+
{[%emt 0:00:05]} Bd7 {[%emt 0:00:06]} 4. Bxd7+ {[%emt 0:00:06]} Nxd7 {[%emt 0:
00:00]} 5. O-O {[%emt 0:00:26]} Ngf6 {[%emt 0:00:28]} 6. Qe2 {[%emt 0:00:14]}
e6 {[%emt 0:00:08]} 7. b3 {[%emt 0:01:06]} Be7 {[%emt 0:00:06]} 8. Bb2 {
[%emt 0:00:42]} O-O {[%emt 0:00:04]} 9. c4 {[%emt 0:01:14]} Re8 {[%emt 0:00:11]
} 10. Nc3 {[%emt 0:00:42] B52: Sicilian: Moscow Variation with 3...Bd7.} Ne5 {
[%emt 0:11:41]} 11. Rfd1 {[%emt 0:03:39]} Qb6 {[%emt 0:04:17]} 12. Na4 {
[%emt 0:10:38] The position is equal.} Nxf3+ {[%emt 0:01:40]} 13. Qxf3 {
[%emt 0:00:49]} Qc6 {[%emt 0:00:38]} 14. Nc3 {[%emt 0:05:06] [#]} Nd7 $146 {
[%emt 0:15:38]} ({Predecessor:} 14... a6 15. d4 cxd4 16. Rxd4 b5 17. cxb5 axb5
18. Rc1 Rec8 19. Qe2 Qa6 20. Nxb5 Rxc1+ 21. Bxc1 Qxa2 22. Qxa2 Rxa2 {0-1 (28)
Raaste,E (2375)-Groszpeter,A (2515) Haifa 1989}) 15. d4 {[%emt 0:08:07]} cxd4 {
[%emt 0:00:56]} 16. Rxd4 {[%emt 0:00:07]} Bf6 {[%emt 0:02:00]} 17. Rd2 {
[%emt 0:01:04]} Be5 {[%emt 0:09:18]} 18. Re1 {[%emt 0:13:47]} Nf6 {[%emt 0:00:
00]} 19. h3 {[%emt 0:04:02]} a6 {[%emt 0:03:32]} 20. Nd1 {[%emt 0:12:34]} (20.
Qe3 {feels hotter.} Rac8 21. f4 Bxc3 22. Qxc3 b5 23. e5) 20... Bxb2 {[%emt 0:
00:00]} 21. Nxb2 {[%emt 0:03:06]} d5 {[%emt 0:06:08]} (21... Rad8 $11) 22. exd5
$16 {[%emt 0:05:14]} exd5 {[%emt 0:00:05]} 23. Red1 {[%emt 0:01:19][%cal Rc4d5]
White is more active.} b5 {[%emt 0:08:35]} 24. cxd5 {[%emt 0:05:59]} Qd6 {
[%emt 0:00:05]} 25. Nd3 {[%emt 0:05:53]} (25. Rd4 $14) 25... Qxd5 $11 {[%emt 0:
00:00]} 26. Qxd5 {[%emt 0:01:50]} Nxd5 {[%emt 0:00:01]} 27. Rc1 {[%emt 0:01:47]
} b4 {[%emt 0:02:16]} 28. Rc4 {[%emt 0:01:17]} a5 {[%emt 0:01:10]} 29. Rc5 {
[%emt 0:03:49]} Nc3 {[%emt 0:00:36] [#] Strongly threatening ...Ne4.} 30. Rc2 {
[%emt 0:02:11]} Red8 {[%emt 0:06:18]} 31. Ne5 {[%emt 0:00:56]} Rd1+ {[%emt 0:
00:00]} 32. Kh2 {[%emt 0:00:05]} Ra1 {[%emt 0:07:42]} 33. Nc6 {[%emt 0:04:32]}
g6 {[%emt 0:01:05]} 34. Rxa5 {[%emt 0:01:18] Weighted Error Value: White=0.07 
(flawless) /Black=0.12 (very precise)} ({Better is} 34. a4 $14) 1/2-1/2

[Event "44th Chess Olympiad Women 2022"]
[Site "Chennai"]
[Date "2022.08.01"]
[Round "4.7"]
[White "Bulmaga, Irina"]
[Black "Paehtz, Elisabeth"]
[Result "1/2-1/2"]
[WhiteElo "2394"]
[BlackElo "2484"]
[Annotator "TA"]
[PlyCount "161"]
[EventDate "2022.??.??"]
[TimeControl "60"]

{[%evp 12,161,25,18,25,34,33,37,48,31,45,3,11,13,14,7,18,23,27,24,21,27,54,23,
41,35,40,14,17,0,6,-25,-25,-40,-27,-32,-32,-28,-34,-42,-40,-108,-108,-90,-74,
-85,-79,-118,-51,-47,0,0,0,0,40,44,51,-61,-38,-36,0,0,0,0,32,10,123,109,119,72,
168,166,178,179,181,109,119,106,133,133,116,116,147,122,211,211,615,612,612,
572,595,580,572,557,506,139,139,150,150,136,136,136,136,136,136,136,12831,
12831,2192,978,12836,12835,12833,12833,12839,12839,12841,12840,12842,12842,
12842,189,189,0,0,0,0,0,0,0,0,0,0,0,0,0,0,0,0,0,0,0,0,0,0,0,0,0,0,0,0,0]} 1. e4
{[%emt 0:00:04]} c6 {[%emt 0:00:02]} 2. d4 {[%emt 0:00:26]} d5 {[%emt 0:00:04]}
3. e5 {[%emt 0:00:15]} Bf5 {[%emt 0:00:03]} 4. Nf3 {[%emt 0:00:32]} e6 {
[%emt 0:00:05]} 5. Be2 {[%emt 0:00:12]} Nd7 {[%emt 0:00:22]} 6. O-O {[%emt 0:
00:00]} h6 {[%emt 0:01:36]} 7. Nbd2 {[%emt 0:03:16]} Ne7 {[%emt 0:00:13] B12:
Caro-Kann: Advance Variation.} 8. Nb3 {[%emt 0:00:18]} a5 {[%emt 0:01:03]} 9.
a4 {[%emt 0:00:45]} Bh7 {[%emt 0:01:20] White is slightly better.} 10. Bd2 {
[%emt 0:02:30]} Qb6 {[%emt 0:01:02] [#]} 11. Ne1 $146 {[%emt 0:09:13]} ({
Predecessor:} 11. Rc1 Nf5 12. Bd3 Bb4 13. Bxb4 Qxb4 14. c3 Qe7 15. Qc2 Bg6 16.
g3 O-O 17. Rfe1 {½-½ (57) So,W (2772)-Carlsen,M (2847) chess24.com INT 2021})
11... Nf5 {[%emt 0:01:31]} 12. c3 {[%emt 0:03:26]} Be7 {[%emt 0:01:39]} 13. Bd3
{[%emt 0:02:49]} Bg6 {[%emt 0:11:12]} 14. Kh1 {[%emt 0:11:00]} h5 {[%emt 0:00:
00]} 15. Nc1 {[%emt 0:11:43]} h4 {[%emt 0:10:47]} (15... Qxb2 $2 16. Rb1 Qa3
17. Nc2 (17. Rxb7 Rb8 $16) 17... Qxa4 18. Ra1 (18. Rxb7 Rb8 $17) 18... Qxa1 19.
Nxa1 $18) 16. Ne2 {[%emt 0:02:05]} Bh7 {[%emt 0:02:05]} (16... Qxb2 17. Rb1 Qa3
18. Rxb7 $16) 17. b4 {[%emt 0:05:00]} Qc7 {[%emt 0:12:58]} 18. bxa5 {[%emt 0:
00:00]} c5 {[%emt 0:02:10][%cal Yc6c5,Yc5c4]} 19. a6 {[%emt 0:13:29]} bxa6 {
[%emt 0:01:02]} 20. Rb1 {[%emt 0:02:36]} Nb8 {[%emt 0:10:34]} 21. a5 {[%emt 0:
03:23]} Nc6 {[%emt 0:04:38]} 22. Qa4 {[%emt 0:00:35]} c4 {[%emt 0:00:00]} 23.
Bc2 {[%emt 0:03:06]} O-O {[%emt 0:00:12]} 24. Nf3 {[%emt 0:06:32]} Nxa5 {
[%emt 0:06:36][%cal Ya5b3]} 25. Bg5 {[%emt 0:00:47]} Nb3 {[%emt 0:02:52]} 26.
Bxb3 {[%emt 0:05:37]} (26. Bxe7 $15 Nxe7 27. Bxh7+ Kxh7 28. Nxh4) 26... cxb3
$17 {[%emt 0:00:04]} 27. Rxb3 {[%emt 0:00:32]} Qd8 {[%emt 0:05:49]} 28. Bxe7 {
[%emt 0:00:53]} Nxe7 {[%emt 0:00:08][%cal Yf5e7,Ye7c6,Yc6a5,Ya5c4]} 29. Rb7 {
[%emt 0:02:08]} Bd3 {[%emt 0:01:26]} ({Black should play} 29... h3 $1 $17 30.
Ng5 (30. gxh3 $2 Be4 $19) 30... hxg2+ 31. Kxg2 Nf5) 30. Qd1 $1 $15 {[%emt 0:02:
35]} Bb5 {[%emt 0:05:38]} (30... Be4 $15 {was preferrable.}) 31. Nxh4 $11 {
[%emt 0:00:12]} Nc6 {[%emt 0:00:06]} 32. Nf3 {[%emt 0:00:46]} Na5 {[%emt 0:00:
05] [#]} 33. Rxb5 {[%emt 0:01:16]} axb5 {[%emt 0:00:02]} 34. Qd2 {[%emt 0:01:
43]} (34. h4 $14) 34... Nc4 {[%emt 0:02:08]} 35. Qf4 {[%emt 0:00:15]} f6 {
[%emt 0:01:53] Inhibits Ng5. Hoping for ...fxe5.} (35... Qa5 $5 {[%cal Ra5a2]})
36. Qh4 {[%emt 0:01:17]} Qe8 {[%emt 0:09:51]} 37. Nf4 {[%emt 0:00:06] Prevents
Qg6.} fxe5 {[%emt 0:02:18]} 38. dxe5 {[%emt 0:00:13]} Rxf4 {[%emt 0:00:00]} 39.
Qxf4 $16 {[%emt 0:00:13]} Qg6 {[%emt 0:00:03]} 40. h3 {[%emt 0:00:00]} (40. h4
$142) 40... Ra2 {[%emt 0:02:56]} (40... Rf8 $16 41. Qh4 Qd3) 41. Kg1 $18 {
[%emt 0:06:30]} Ra3 {[%emt 0:05:47]} 42. Qh4 {[%emt 0:02:46] aiming for Qd8+.}
Ra8 {[%emt 0:01:36] Against Qd8+} 43. Qg4 {[%emt 0:09:46]} (43. Re1 $18) 43...
Qxg4 $16 {[%emt 0:01:23]} 44. hxg4 {[%emt 0:00:02] Endgame KRN-KRN} Kf7 {
[%emt 0:03:03]} 45. Rb1 {[%emt 0:00:32]} Ra5 {[%emt 0:00:00]} 46. Kh2 {[%emt 0:
01:57]} Kg6 {[%emt 0:03:49]} 47. Rb3 $1 {[%emt 0:02:21]} Ra2 {[%emt 0:04:50]} (
47... Kh6 $16 {was necessary.} 48. Kh3 g5) 48. Kg3 $18 {[%emt 0:00:34]} ({
Less strong is} 48. Rxb5 Rxf2 49. Rc5 Rc2 $14) 48... Nd2 $2 {[%emt 0:02:58]} (
48... Ra5 49. Nd4 Kf7) 49. Nxd2 {[%emt 0:07:32]} Rxd2 {[%emt 0:00:06]} 50. Rxb5
{[%emt 0:00:57] KR-KR} Rd3+ {[%emt 0:01:02] [#]} 51. Kh4 $1 {[%emt 0:03:01]}
Rxc3 {[%emt 0:01:58]} 52. Rb6 {[%emt 0:00:39]} Kf7 {[%emt 0:02:46] [#]} 53.
Rb7+ $2 {[%emt 0:00:02]} (53. f4 $1 $18 {and the rest is easy.} Rc5 54. Rb4)
53... Kg6 $16 {[%emt 0:00:18]} 54. Re7 {[%emt 0:01:18]} Rc6 {[%emt 0:00:02]}
55. f4 {[%emt 0:01:04]} Ra6 {[%emt 0:00:17]} 56. Rd7 {[%emt 0:00:41]} Ra4 {
[%emt 0:03:28]} 57. g3 {[%emt 0:00:27]} Ra6 {[%emt 0:00:00]} 58. Rd8 {[%emt 0:
00:38] White is more active.} Ra4 $2 {[%emt 0:02:54]} (58... Rc6 $16 59. Kh3
Kf7 60. Rd7+ Kg6) 59. Rd6 $18 {[%emt 0:00:00]} Kf7 {[%emt 0:00:15]} 60. Kg5 {
[%emt 0:00:10] And now Rd7+ would win.} Ra3 {[%emt 0:01:22]} 61. Rd7+ {[%emt 0:
02:48]} Kf8 {[%emt 0:00:06]} 62. Kg6 {[%emt 0:00:45]} Rxg3 {[%emt 0:00:09]} 63.
g5 {[%emt 0:00:04]} Rf3 {[%emt 0:00:00]} 64. Rf7+ {[%emt 0:00:18]} Ke8 {
[%emt 0:00:04]} 65. Kxg7 {[%emt 0:00:36]} d4 {[%emt 0:00:02]} 66. Ra7 $2 {
[%emt 0:00:45]} (66. f5 Rxf5 67. Rxf5 exf5 68. Kf6) 66... Rxf4 {[%emt 0:00:12]}
67. Ra6 $2 {[%emt 0:00:41]} ({Only move:} 67. Ra3 $18) 67... Ke7 $11 {[%emt 0:
00:56] The position is equal.} 68. g6 {[%emt 0:00:00]} d3 $1 {[%emt 0:01:08]}
69. Rd6 {[%emt 0:00:03]} Rf3 {[%emt 0:00:47]} 70. Rd4 {[%emt 0:01:12]} Rg3 {
[%emt 0:01:10]} 71. Kh7 {[%emt 0:00:14]} Rh3+ {[%emt 0:00:07]} 72. Kg8 {
[%emt 0:00:11]} Rg3 {[%emt 0:00:11]} 73. Kg7 {[%emt 0:00:00]} Rh3 {[%emt 0:00:
07][%cal Yg3h3,Yh3h2,Yh2g2]} 74. Rg4 {[%emt 0:00:00]} d2 {[%emt 0:00:18]} 75.
Rd4 {[%emt 0:00:33]} Rh2 {[%emt 0:00:05]} 76. Kg8 {[%emt 0:00:23]} Rg2 {
[%emt 0:00:10]} 77. g7 {[%emt 0:00:21]} Rh2 {[%emt 0:00:00]} 78. Rd3 {[%emt 0:
00:08]} Ke8 {[%emt 0:00:31]} 79. Rd6 {[%emt 0:00:07]} Ke7 {[%emt 0:00:03]} 80.
Rd3 {[%emt 0:00:05]} Ke8 {[%emt 0:00:02]} 81. Rd6 {[%emt 0:00:05] White really
could win this. Weighted Error Value: White=0.25 (precise) /Black=0.24 
(precise)} 1/2-1/2